fUST/lending_fUST_20251207
["ID","MTS","AMOUNT","RATE_DAILY","PERIOD"]
[396570290,1765055446662,-500.0,8.219e-05,2]
[396570291,1765055446673,-500.0,8.219e-05,2]
[396570292,1765055446682,-1457.1,8.219e-05,2]
[396570293,1765055446691,-500.0,8.219e-05,2]
[396570294,1765055446700,-500.0,8.219e-05,2]
[396570295,1765055446710,-740.17,8.219e-05,2]
[396570296,1765055446719,-2155.13,8.219e-05,2]
[396570297,1765055446728,-1874.71,8.219e-05,2]
[396570298,1765055446737,-1648.26,8.219e-05,2]
[396570299,1765055446747,-500.0,8.219e-05,2]
[396570300,1765055446756,-500.0,8.219e-05,2]
[396570301,1765055446765,-568.26,8.219e-05,2]
[396570302,1765055446774,-500.0,8.219e-05,2]
[396570303,1765055446783,-690.26,8.219e-05,2]
[396570304,1765055446792,-636.18,8.219e-05,2]
[396570305,1765055446802,-500.0,8.219e-05,2]
[396570306,1765055446811,-500.0,8.219e-05,2]
[396570307,1765055446820,-508.41,8.219e-05,2]
[396570308,1765055446830,-500.0,8.219e-05,2]
[396570309,1765055446839,-500.0,8.219e-05,2]
[396570310,1765055446848,-500.0,8.219e-05,2]
[396570311,1765055446857,-500.0,8.219e-05,2]
[396570312,1765055446866,-500.0,8.219e-05,2]
[396570313,1765055446875,-500.0,8.219e-05,2]
[396570314,1765055446884,-224.76574227,8.219e-05,2]
[396570315,1765055446894,-2484.37,8.219e-05,2]
[396570316,1765055446903,-6053.56,8.219e-05,2]
[396570317,1765055446913,-1042.84,8.219e-05,2]
[396570318,1765055446922,-657.07,8.219e-05,2]
[396570319,1765055446932,-2236.76,8.219e-05,2]
[396570320,1765055446942,-500.0,8.219e-05,2]
[396570321,1765055446951,-500.0,8.219e-05,2]
[396570322,1765055446960,-500.0,8.219e-05,2]
[396570324,1765055446969,-1359.69,8.219e-05,2]
[396570326,1765055446979,-500.0,8.219e-05,2]
[396570328,1765055446988,-500.0,8.219e-05,2]
[396570330,1765055446998,-1204.67,8.219e-05,2]
[396570331,1765055447008,-737.59,8.219e-05,2]
[396570333,1765055447018,-500.0,8.219e-05,2]
[396570335,1765055447027,-5032.43,8.219e-05,2]
[396570337,1765055447036,-512.76,8.219e-05,2]
[396570338,1765055447046,-1553.31,8.219e-05,2]
[396570340,1765055447055,-883.58,8.219e-05,2]
[396570341,1765055447065,-500.0,8.219e-05,2]
[396570343,1765055447074,-1394.01,8.219e-05,2]
[396570346,1765055447084,-500.0,8.219e-05,2]
[396570347,1765055447094,-1848.6163,8.219e-05,2]
[396570349,1765055447103,-1848.6163,8.219e-05,2]
[396570350,1765055447113,-1848.6163,8.219e-05,2]
[396570351,1765055447122,-1848.6163,8.219e-05,2]
[396570352,1765055447131,-1848.6163,8.219e-05,2]
[396570353,1765055447140,-1848.6163,8.219e-05,2]
[396570354,1765055447150,-1848.6163,8.219e-05,2]
[396570355,1765055447159,-1848.6163,8.219e-05,2]
[396570356,1765055447168,-1848.6163,8.219e-05,2]
[396570357,1765055447178,-1848.6163,8.219e-05,2]
[396570358,1765055447187,-1848.6163,8.219e-05,2]
[396570359,1765055447197,-1848.6163,8.219e-05,2]
[396570360,1765055447206,-1848.6163,8.219e-05,2]
[396570361,1765055447215,-1848.6163,8.219e-05,2]
[396570362,1765055447225,-1848.6163,8.219e-05,2]
[396570363,1765055447234,-1848.6163,8.219e-05,2]
[396570364,1765055447243,-1848.6163,8.219e-05,2]
[396570365,1765055447252,-1848.6163,8.219e-05,2]
[396570366,1765055447262,-1848.6163,8.219e-05,2]
[396570367,1765055447272,-1848.616309,8.219e-05,2]
[396570368,1765055447283,-3494.0538279,8.227e-05,2]
[396570369,1765055447292,-1984.64881965,8.242e-05,2]
[396570370,1765055447309,-164.9806101,8.255e-05,2]
[396570371,1765055447319,-500.0,8.255e-05,2]
[396570372,1765055447328,-535.0,8.255e-05,2]
[396570373,1765055447338,-2104.91,8.265e-05,2]
[396570374,1765055447347,-300.0,8.28e-05,2]
[396570375,1765055447359,-300.0,8.28e-05,2]
[396570376,1765055447368,-300.0,8.28e-05,2]
[396570377,1765055447377,-300.0,8.28e-05,2]
[396570378,1765055447387,-300.0,8.28e-05,2]
[396570380,1765055447397,-300.0,8.28e-05,2]
[396570382,1765055447406,-300.0,8.28e-05,2]
[396570384,1765055447417,-300.0,8.28e-05,2]
[396570386,1765055447427,-300.0,8.28e-05,2]
[396570388,1765055447436,-300.0,8.28e-05,2]
[396570390,1765055447445,-300.0,8.28e-05,2]
[396570392,1765055447455,-300.0,8.28e-05,2]
[396570394,1765055447464,-300.0,8.28e-05,2]
[396570396,1765055447474,-300.0,8.28e-05,2]
[396570398,1765055447483,-300.0,8.28e-05,2]
[396570400,1765055447492,-600.0,8.28e-05,2]
[396570402,1765055447502,-800.0,8.281e-05,2]
[396570404,1765055447511,-411.80482758,8.307e-05,2]
[396570406,1765055447521,-741.24868965,8.338e-05,2]
[396570408,1765055447530,-406.8030796,8.358e-05,2]
[396570410,1765055447539,-1317.77544826,8.369e-05,2]
[396570412,1765055447549,-500.0,8.392e-05,2]
[396570414,1765055447558,-535.0,8.392e-05,2]
[396570416,1765055447568,-464.91780526,8.398e-05,2]
[396570418,1765055447577,-2059.02413791,8.399e-05,2]
[396570420,1765055447586,-1535.45431964,8.438e-05,2]
[396570422,1765055447596,-314.16267025,8.46e-05,2]
[396570425,1765055447605,-500.0,8.493e-05,2]
[396570426,1765055447615,-500.0,8.493e-05,2]
[396570429,1765055447624,-495.75796305,8.493e-05,2]
[396570431,1765055447634,-500.0,8.493e-05,2]
[396570433,1765055447645,-898.73,8.493e-05,2]
[396570435,1765055447654,-500.0,8.493e-05,2]
[396570437,1765055447664,-500.0,8.493e-05,2]
[396570439,1765055447673,-500.0,8.493e-05,2]
[396570441,1765055447685,-500.0,8.493e-05,2]
[396570443,1765055447695,-500.0,8.493e-05,2]
[396570445,1765055447705,-500.0,8.493e-05,2]
[396570447,1765055447714,-500.0,8.493e-05,2]
[396570449,1765055447723,-500.0,8.493e-05,2]
[396570451,1765055447737,-500.0,8.493e-05,2]
[396570453,1765055447746,-663.47,8.493e-05,2]
[396570455,1765055447756,-713.32,8.493e-05,2]
[396570457,1765055447766,-500.0,8.493e-05,2]
[396570459,1765055447775,-500.0,8.493e-05,2]
[396570461,1765055447784,-500.0,8.493e-05,2]
[396570463,1765055447796,-500.0,8.493e-05,2]
[396570466,1765055447811,-500.0,8.493e-05,2]
[396570468,1765055447826,-563.66,8.493e-05,2]
[396570470,1765055447836,-500.0,8.493e-05,2]
[396570472,1765055447845,-500.0,8.493e-05,2]
[396570474,1765055447855,-500.0,8.493e-05,2]
[396570476,1765055447865,-500.0,8.493e-05,2]
[396570478,1765055447874,-500.0,8.493e-05,2]
[396570480,1765055447884,-525.07,8.493e-05,2]
[396570482,1765055447894,-537.49,8.493e-05,2]
[396570484,1765055447903,-624.36,8.493e-05,2]
[396570486,1765055447913,-500.0,8.493e-05,2]
[396570488,1765055447922,-500.0,8.493e-05,2]
[396570490,1765055447932,-500.0,8.493e-05,2]
[396570492,1765055447942,-622.45,8.493e-05,2]
[396570494,1765055447951,-500.0,8.493e-05,2]
[396570496,1765055447961,-500.0,8.493e-05,2]
[396570498,1765055447970,-3682.836384,8.493e-05,2]
[396570500,1765055447979,-500.0,8.493e-05,2]
[396570502,1765055447989,-1589.85,8.493e-05,2]
[396570504,1765055447998,-500.0,8.493e-05,2]
[396570506,1765055448008,-500.0,8.493e-05,2]
[396570508,1765055448017,-1087.31,8.493e-05,2]
[396570510,1765055448027,-500.0,8.493e-05,2]
[396570512,1765055448036,-500.0,8.493e-05,2]
[396570515,1765055448046,-500.0,8.493e-05,2]
[396570516,1765055448055,-500.0,8.493e-05,2]
[396570518,1765055448065,-500.0,8.493e-05,2]
[396570521,1765055448076,-713.0,8.493e-05,2]
[396570523,1765055448086,-500.0,8.493e-05,2]
[396570524,1765055448095,-500.0,8.493e-05,2]
[396570527,1765055448105,-566.05,8.493e-05,2]
[396570528,1765055448115,-500.0,8.493e-05,2]
[396570531,1765055448125,-247.94840236,8.493e-05,2]
[396570532,1765055448135,-500.0,8.493e-05,2]
[396570534,1765055448145,-500.0,8.493e-05,2]
[396570536,1765055448154,-500.0,8.493e-05,2]
[396570538,1765055448164,-500.0,8.493e-05,2]
[396570541,1765055448176,-500.0,8.493e-05,2]
[396570543,1765055448187,-877.38,8.493e-05,2]
[396570545,1765055448197,-500.0,8.493e-05,2]
[396570547,1765055448207,-429.36880237,8.493e-05,2]
[396570549,1765055448217,-500.0,8.493e-05,2]
[396570550,1765055448227,-500.0,8.493e-05,2]
[396570553,1765055448237,-1132.83,8.493e-05,2]
[396570555,1765055448248,-500.0,8.493e-05,2]
[396570556,1765055448258,-500.0,8.493e-05,2]
[396570558,1765055448271,-500.0,8.493e-05,2]
[396570559,1765055448285,-500.0,8.493e-05,2]
[396570560,1765055448295,-500.0,8.493e-05,2]
[396570562,1765055448306,-500.0,8.493e-05,2]
[396570564,1765055448317,-500.0,8.493e-05,2]
[396570567,1765055448328,-500.0,8.493e-05,2]
[396570569,1765055448338,-500.0,8.493e-05,2]
[396570571,1765055448348,-681.31,8.493e-05,2]
[396570573,1765055448359,-500.0,8.493e-05,2]
[396570575,1765055448371,-166.3882429,8.493e-05,2]
[396570577,1765055448382,-500.0,8.493e-05,2]
[396570579,1765055448392,-500.0,8.493e-05,2]
[396570581,1765055448402,-500.0,8.493e-05,2]
[396570583,1765055448412,-500.0,8.493e-05,2]
[396570585,1765055448423,-551.66,8.493e-05,2]
[396570587,1765055448433,-539.12,8.493e-05,2]
[396570589,1765055448442,-534.25,8.493e-05,2]
[396570591,1765055448453,-500.0,8.493e-05,2]
[396570593,1765055448463,-500.0,8.493e-05,2]
[396570595,1765055448473,-500.0,8.493e-05,2]
[396570598,1765055448482,-582.41,8.493e-05,2]
[396570600,1765055448492,-674.04,8.493e-05,2]
[396570601,1765055448501,-500.0,8.493e-05,2]
[396570604,1765055448511,-500.0,8.493e-05,2]
[396570606,1765055448521,-500.0,8.493e-05,2]
[396570608,1765055448531,-500.0,8.493e-05,2]
[396570610,1765055448541,-500.0,8.493e-05,2]
[396570612,1765055448551,-500.0,8.493e-05,2]
[396570614,1765055448562,-562.86,8.493e-05,2]
[396570616,1765055448572,-500.0,8.493e-05,2]
[396570618,1765055448581,-500.0,8.493e-05,2]
[396570620,1765055448591,-500.0,8.493e-05,2]
[396570622,1765055448601,-500.0,8.493e-05,2]
[396570624,1765055448611,-500.0,8.493e-05,2]
[396570626,1765055448620,-500.0,8.493e-05,2]
[396570628,1765055448630,-1000.0,8.493e-05,2]
[396570630,1765055448640,-2198.97,8.493e-05,2]
[396570632,1765055448649,-500.0,8.493e-05,2]
[396570634,1765055448659,-500.0,8.493e-05,2]
[396570636,1765055448669,-500.0,8.493e-05,2]
[396570638,1765055448678,-500.0,8.493e-05,2]
[396570640,1765055448689,-500.0,8.493e-05,2]
[396570643,1765055448699,-500.0,8.493e-05,2]
[396570645,1765055448709,-523.79,8.493e-05,2]
[396570647,1765055448720,-658.81,8.493e-05,2]
[396570649,1765055448731,-500.0,8.493e-05,2]
[396570651,1765055448744,-500.0,8.493e-05,2]
[396570652,1765055448755,-500.0,8.493e-05,2]
[396570655,1765055448764,-2003.01,8.493e-05,2]
[396570657,1765055448775,-500.0,8.493e-05,2]
[396570659,1765055448785,-500.0,8.493e-05,2]
[396570660,1765055448796,-500.0,8.493e-05,2]
[396570663,1765055448807,-500.0,8.493e-05,2]
[396570665,1765055448817,-500.0,8.493e-05,2]
[396570667,1765055448828,-500.0,8.493e-05,2]
[396570669,1765055448838,-558.7,8.493e-05,2]
[396570671,1765055448864,-500.0,8.493e-05,2]
[396570673,1765055448875,-500.0,8.493e-05,2]
[396570676,1765055448886,-500.0,8.493e-05,2]
[396570678,1765055448896,-500.0,8.493e-05,2]
[396570680,1765055448906,-500.0,8.493e-05,2]
[396570682,1765055448917,-500.0,8.493e-05,2]
[396570684,1765055448928,-500.0,8.493e-05,2]
[396570686,1765055448939,-1095.02,8.493e-05,2]
[396570688,1765055448951,-351.35492496,8.493e-05,2]
[396570690,1765055448962,-1467.3,8.493e-05,2]
[396570692,1765055448973,-594.19,8.493e-05,2]
[396570694,1765055448984,-500.0,8.493e-05,2]
[396570696,1765055448995,-996.41,8.493e-05,2]
[396570698,1765055449004,-500.0,8.493e-05,2]
[396570701,1765055449015,-1040.86,8.493e-05,2]
[396570703,1765055449026,-500.0,8.493e-05,2]
[396570705,1765055449036,-500.0,8.493e-05,2]
[396570707,1765055449048,-500.0,8.493e-05,2]
[396570709,1765055449059,-500.0,8.493e-05,2]
[396570711,1765055449069,-1455.19,8.493e-05,2]
[396570713,1765055449079,-500.0,8.493e-05,2]
[396570715,1765055449089,-500.0,8.493e-05,2]
[396570717,1765055449100,-500.0,8.493e-05,2]
[396570719,1765055449110,-578.17,8.493e-05,2]
[396570721,1765055449120,-500.0,8.493e-05,2]
[396570723,1765055449131,-1090.1,8.493e-05,2]
[396570725,1765055449141,-1244.61,8.493e-05,2]
[396570728,1765055449152,-813.76,8.493e-05,2]
[396570730,1765055449164,-500.0,8.493e-05,2]
[396570732,1765055449174,-500.0,8.493e-05,2]
[396570734,1765055449183,-500.0,8.493e-05,2]
[396570736,1765055449193,-500.0,8.493e-05,2]
[396570738,1765055449204,-1158.75,8.493e-05,2]
[396570740,1765055449214,-942.22,8.493e-05,2]
[396570742,1765055449224,-760.34,8.493e-05,2]
[396570744,1765055449235,-1318.53,8.493e-05,2]
[396570746,1765055449245,-550.79,8.493e-05,2]
[396570748,1765055449255,-532.73,8.493e-05,2]
[396570750,1765055449266,-787.45,8.493e-05,2]
[396570752,1765055449278,-500.0,8.493e-05,2]
[396570754,1765055449288,-500.0,8.493e-05,2]
[396570756,1765055449298,-572.68,8.493e-05,2]
[396570758,1765055449309,-500.0,8.493e-05,2]
[396570760,1765055449319,-500.0,8.493e-05,2]
[396570762,1765055449330,-690.25,8.493e-05,2]
[396570764,1765055449340,-500.0,8.493e-05,2]
[396570766,1765055449356,-500.0,8.493e-05,2]
[396570768,1765055449367,-500.0,8.493e-05,2]
[396570771,1765055449378,-500.0,8.493e-05,2]
[396570773,1765055449388,-2757.34,8.493e-05,2]
[396570775,1765055449398,-500.0,8.493e-05,2]
[396570777,1765055449408,-543.94383626,8.493e-05,2]
[396570779,1765055449418,-500.0,8.493e-05,2]
[396570781,1765055449428,-500.0,8.493e-05,2]
[396570783,1765055449439,-500.0,8.493e-05,2]
[396570785,1765055449448,-1976.96,8.493e-05,2]
[396570787,1765055449459,-237.55519485,8.493e-05,2]
[396570789,1765055449470,-500.0,8.493e-05,2]
[396570791,1765055449480,-500.0,8.493e-05,2]
[396570793,1765055449491,-2168.82,8.493e-05,2]
[396570795,1765055449502,-500.0,8.493e-05,2]
[396570797,1765055449512,-574.36,8.493e-05,2]
[396570800,1765055449523,-500.0,8.493e-05,2]
[396570802,1765055449533,-500.0,8.493e-05,2]
[396570804,1765055449544,-500.0,8.493e-05,2]
[396570806,1765055449553,-500.0,8.493e-05,2]
[396570808,1765055449565,-500.0,8.493e-05,2]
[396570810,1765055449575,-758.66,8.493e-05,2]
[396570812,1765055449585,-662.65,8.493e-05,2]
[396570814,1765055449597,-500.0,8.493e-05,2]
[396570816,1765055449607,-500.0,8.493e-05,2]
[396570818,1765055449618,-478.87926398,8.493e-05,2]
[396570820,1765055449628,-1785.87,8.493e-05,2]
[396570822,1765055449638,-500.0,8.493e-05,2]
[396570824,1765055449648,-590.22476063,8.493e-05,2]
[396570826,1765055449658,-500.0,8.493e-05,2]
[396570828,1765055449668,-500.0,8.493e-05,2]
[396570830,1765055449678,-500.0,8.493e-05,2]
[396570832,1765055449688,-591.0,8.493e-05,2]
[396570835,1765055449698,-500.0,8.493e-05,2]
[396570837,1765055449708,-500.0,8.493e-05,2]
[396570839,1765055449718,-1058.33,8.493e-05,2]
[396570841,1765055449729,-500.0,8.493e-05,2]
[396570843,1765055449739,-500.0,8.493e-05,2]
[396570845,1765055449749,-500.0,8.493e-05,2]
[396570847,1765055449759,-500.0,8.493e-05,2]
[396570849,1765055449769,-500.0,8.493e-05,2]
[396570851,1765055449780,-500.0,8.493e-05,2]
[396570853,1765055449792,-1822.34,8.493e-05,2]
[396570855,1765055449802,-563.83,8.493e-05,2]
[396570857,1765055449813,-500.0,8.493e-05,2]
[396570859,1765055449823,-500.0,8.493e-05,2]
[396570862,1765055449833,-500.0,8.493e-05,2]
[396570864,1765055449843,-500.0,8.493e-05,2]
[396570866,1765055449857,-500.0,8.493e-05,2]
[396570868,1765055449867,-500.0,8.493e-05,2]
[396570870,1765055449878,-500.0,8.493e-05,2]
[396570872,1765055449889,-568.78971484,8.493e-05,2]
[396570874,1765055449899,-1164.7,8.493e-05,2]
[396570876,1765055449909,-559.65,8.493e-05,2]
[396570878,1765055449919,-500.0,8.493e-05,2]
[396570880,1765055449930,-500.0,8.493e-05,2]
[396570882,1765055449941,-500.0,8.493e-05,2]
[396570884,1765055449950,-500.0,8.493e-05,2]
[396570886,1765055449960,-500.0,8.493e-05,2]
[396570889,1765055449971,-500.0,8.493e-05,2]
[396570891,1765055449981,-369.04190722,8.493e-05,2]
[396570892,1765055449991,-500.0,8.493e-05,2]
[396570895,1765055450001,-500.0,8.493e-05,2]
[396570897,1765055450012,-1518.54,8.493e-05,2]
[396570899,1765055450021,-500.0,8.493e-05,2]
[396570901,1765055450032,-500.0,8.493e-05,2]
[396570903,1765055450042,-500.0,8.493e-05,2]
[396570905,1765055450052,-500.0,8.493e-05,2]
[396570907,1765055450063,-526.67,8.493e-05,2]
[396570909,1765055450074,-500.0,8.493e-05,2]
[396570911,1765055450084,-500.0,8.493e-05,2]
[396570913,1765055450094,-500.0,8.493e-05,2]
[396570915,1765055450105,-500.0,8.493e-05,2]
[396570917,1765055450116,-307.62913225,8.493e-05,2]
[396570919,1765055450126,-500.0,8.493e-05,2]
[396570921,1765055450136,-500.0,8.493e-05,2]
[396570923,1765055450146,-594.8,8.493e-05,2]
[396570925,1765055450157,-500.0,8.493e-05,2]
[396570928,1765055450167,-500.0,8.493e-05,2]
[396570930,1765055450177,-500.0,8.493e-05,2]
[396570932,1765055450190,-500.0,8.493e-05,2]
[396570934,1765055450200,-500.0,8.493e-05,2]
[396570936,1765055450211,-500.0,8.493e-05,2]
[396570938,1765055450221,-776.49,8.493e-05,2]
[396570940,1765055450231,-608.97,8.493e-05,2]
[396570942,1765055450242,-276.47666529,8.493e-05,2]
[396570944,1765055450252,-1214.37,8.493e-05,2]
[396570946,1765055450263,-500.0,8.493e-05,2]
[396570948,1765055450276,-500.0,8.493e-05,2]
[396570949,1765055450287,-1336.74,8.493e-05,2]
[396570950,1765055450298,-500.0,8.493e-05,2]
[396570951,1765055450308,-500.0,8.493e-05,2]
[396570952,1765055450319,-500.0,8.493e-05,2]
[396570953,1765055450330,-592.85,8.493e-05,2]
[396570954,1765055450340,-500.0,8.493e-05,2]
[396570955,1765055450351,-500.0,8.493e-05,2]
[396570956,1765055450361,-2800.96,8.493e-05,2]
[396570957,1765055450371,-2465.94,8.493e-05,2]
[396570958,1765055450380,-500.0,8.493e-05,2]
[396570959,1765055450390,-500.0,8.493e-05,2]
[396570960,1765055450400,-500.0,8.493e-05,2]
[396570961,1765055450410,-500.0,8.493e-05,2]
[396570962,1765055450420,-2338.65,8.493e-05,2]
[396570963,1765055450430,-500.0,8.493e-05,2]
[396570964,1765055450440,-1180.5,8.493e-05,2]
[396570965,1765055450450,-500.0,8.493e-05,2]
[396570966,1765055450460,-500.0,8.493e-05,2]
[396570967,1765055450470,-500.0,8.493e-05,2]
[396570968,1765055450480,-500.0,8.493e-05,2]
[396570969,1765055450491,-974.77,8.493e-05,2]
[396570970,1765055450502,-500.0,8.493e-05,2]
[396571000,1765055450833,-500.0,8.493e-05,2]
[396571003,1765055450848,-847.22,8.493e-05,2]
[396571005,1765055450860,-500.0,8.493e-05,2]
[396571007,1765055450870,-532.96417521,8.493e-05,2]
[396571009,1765055450880,-882.71,8.493e-05,2]
[396571011,1765055450889,-500.0,8.493e-05,2]
[396571013,1765055450899,-1868.06,8.493e-05,2]
[396571015,1765055450909,-500.0,8.493e-05,2]
[396571017,1765055450918,-514.87,8.493e-05,2]
[396571020,1765055450929,-500.0,8.493e-05,2]
[396571022,1765055450938,-500.0,8.493e-05,2]
[396571024,1765055450948,-500.0,8.493e-05,2]
[396571026,1765055450957,-500.0,8.493e-05,2]
[396571028,1765055450966,-500.0,8.493e-05,2]
[396571030,1765055450976,-710.13,8.493e-05,2]
[396571032,1765055450986,-500.0,8.493e-05,2]
[396571034,1765055450996,-500.0,8.493e-05,2]
[396571036,1765055451006,-500.0,8.493e-05,2]
[396571038,1765055451015,-500.0,8.493e-05,2]
[396571040,1765055451025,-500.0,8.493e-05,2]
[396571042,1765055451034,-500.0,8.493e-05,2]
[396571044,1765055451044,-500.0,8.493e-05,2]
[396571046,1765055451054,-500.0,8.493e-05,2]
[396571048,1765055451063,-500.01123074,8.493e-05,2]
[396571050,1765055451072,-500.0,8.493e-05,2]
[396571052,1765055451082,-500.0,8.493e-05,2]
[396571054,1765055451091,-500.0,8.493e-05,2]
[396571056,1765055451101,-608.08,8.493e-05,2]
[396571058,1765055451110,-500.0,8.493e-05,2]
[396571060,1765055451120,-500.0,8.493e-05,2]
[396571062,1765055451130,-500.0,8.493e-05,2]
[396571064,1765055451139,-500.0,8.493e-05,2]
[396571066,1765055451149,-500.0,8.493e-05,2]
[396571068,1765055451159,-500.0,8.493e-05,2]
[396571070,1765055451169,-500.0,8.493e-05,2]
[396571072,1765055451179,-500.0,8.493e-05,2]
[396571074,1765055451188,-500.0,8.493e-05,2]
[396571076,1765055451198,-500.0,8.493e-05,2]
[396571078,1765055451208,-500.0,8.493e-05,2]
[396571080,1765055451217,-531.81,8.493e-05,2]
[396571082,1765055451226,-500.0,8.493e-05,2]
[396571084,1765055451236,-716.87,8.493e-05,2]
[396571086,1765055451245,-500.0,8.493e-05,2]
[396571088,1765055451255,-500.0,8.493e-05,2]
[396571090,1765055451266,-439.94961553,8.493e-05,2]
[396571092,1765055451278,-663.76,8.493e-05,2]
[396571094,1765055451287,-500.0,8.493e-05,2]
[396571096,1765055451297,-500.0,8.493e-05,2]
[396571098,1765055451307,-1219.81,8.493e-05,2]
[396571100,1765055451316,-1234.87,8.493e-05,2]
[396571102,1765055451326,-906.09,8.493e-05,2]
[396571104,1765055451336,-500.0,8.493e-05,2]
[396571106,1765055451346,-986.05,8.493e-05,2]
[396571108,1765055451358,-674.59,8.493e-05,2]
[396571110,1765055451367,-460.84097341,8.493e-05,2]
[396571112,1765055451376,-150.1,8.493e-05,2]
[396571114,1765055451386,-500.0,8.493e-05,2]
[396571116,1765055451395,-500.0,8.493e-05,2]
[396571119,1765055451405,-731.62,8.493e-05,2]
[396571121,1765055451414,-1237.32,8.493e-05,2]
[396571123,1765055451424,-1239.77,8.493e-05,2]
[396571125,1765055451433,-917.68,8.493e-05,2]
[396571127,1765055451443,-1117.88,8.493e-05,2]
[396571129,1765055451453,-500.0,8.493e-05,2]
[396571131,1765055451462,-500.0,8.493e-05,2]
[396571133,1765055451472,-500.0,8.493e-05,2]
[396571135,1765055451481,-500.0,8.493e-05,2]
[396571137,1765055451491,-500.0,8.493e-05,2]
[396571139,1765055451500,-500.0,8.493e-05,2]
[396571141,1765055451509,-500.0,8.493e-05,2]
[396571142,1765055451519,-603.57,8.493e-05,2]
[396571145,1765055451528,-818.06,8.493e-05,2]
[396571147,1765055451537,-500.0,8.493e-05,2]
[396571148,1765055451547,-463.50601338,8.493e-05,2]
[396571151,1765055451557,-500.0,8.493e-05,2]
[396571153,1765055451566,-5292.83,8.493e-05,2]
[396571155,1765055451575,-500.0,8.493e-05,2]
[396571157,1765055451587,-500.0,8.493e-05,2]
[396571159,1765055451596,-1365.26,8.493e-05,2]
[396571161,1765055451606,-500.0,8.493e-05,2]
[396571163,1765055451615,-500.0,8.493e-05,2]
[396571165,1765055451624,-500.0,8.493e-05,2]
[396571166,1765055451633,-500.0,8.493e-05,2]
[396571168,1765055451643,-1714.1,8.493e-05,2]
[396571171,1765055451652,-500.0,8.493e-05,2]
[396571173,1765055451662,-500.0,8.493e-05,2]
[396571174,1765055451671,-500.0,8.493e-05,2]
[396571176,1765055451681,-500.0,8.493e-05,2]
[396571179,1765055451691,-500.0,8.493e-05,2]
[396571181,1765055451702,-500.0,8.493e-05,2]
[396571183,1765055451712,-500.0,8.493e-05,2]
[396571185,1765055451721,-500.0,8.493e-05,2]
[396571187,1765055451731,-500.0,8.493e-05,2]
[396571189,1765055451740,-500.0,8.493e-05,2]
[396571191,1765055451749,-500.0,8.493e-05,2]
[396571193,1765055451759,-1389.93,8.493e-05,2]
[396571194,1765055451769,-500.0,8.493e-05,2]
[396571197,1765055451779,-500.0,8.493e-05,2]
[396571198,1765055451790,-500.0,8.493e-05,2]
[396571200,1765055451799,-856.7,8.493e-05,2]
[396571202,1765055451808,-1005.66,8.493e-05,2]
[396571204,1765055451818,-500.0,8.493e-05,2]
[396571207,1765055451828,-1864.45,8.493e-05,2]
[396571208,1765055451838,-500.0,8.493e-05,2]
[396571211,1765055451848,-500.0,8.493e-05,2]
[396571212,1765055451859,-500.0,8.493e-05,2]
[396571215,1765055451869,-10457.24,8.493e-05,2]
[396571217,1765055451881,-500.0,8.493e-05,2]
[396571218,1765055451891,-700.33,8.493e-05,2]
[396571221,1765055451902,-744.13,8.493e-05,2]
[396571223,1765055451913,-3298.89,8.493e-05,2]
[396571225,1765055451923,-500.0,8.493e-05,2]
[396571226,1765055451933,-500.0,8.493e-05,2]
[396571229,1765055451945,-6067.67,8.493e-05,2]
[396571231,1765055451954,-2716.35,8.493e-05,2]
[396571233,1765055451963,-668.05,8.493e-05,2]
[396571234,1765055451974,-500.0,8.493e-05,2]
[396571237,1765055451983,-500.0,8.493e-05,2]
[396571239,1765055451993,-500.0,8.493e-05,2]
[396571241,1765055452002,-500.0,8.493e-05,2]
[396571243,1765055452011,-500.0,8.493e-05,2]
[396571245,1765055452020,-838.73,8.493e-05,2]